bitfinex/quotes_ETHUSD_20220120
["timestamp","ask_amount","ask_price","bid_price","bid_amount"]
[1642694770113,2.32590878,3271.1,3270.6,0.00625266]
[1642694770310,2.32590878,3271.0,3270.6,0.00625266]
[1642694770611,2.32590878,3271.1,3270.6,1.72533393]
[1642694770810,4.06175839,3271.7,3270.6,1.0033511]
[1642694770811,2.32590878,3271.2,3270.6,1.0033511]
[1642694771011,2.32590878,3271.2,3270.7,0.00568423]
[1642694771211,2.32590878,3271.1,3270.7,0.00568423]
[1642694771410,2.32590878,3271.0,3270.5,0.00682108]
[1642694771610,2.32590878,3271.0,3270.1,0.01136842]
[1642694771853,2.32590878,3270.8,3270.5,0.00682108]
[1642694772057,2.32590878,3270.8,3270.2,0.00852635]
[1642694772259,2.32590878,3270.7,3270.2,0.00852635]
[1642694772661,2.32590878,3270.7,3269.9,0.01250526]
[1642694772853,2.32590878,3270.7,3270.0,0.0096632]
[1642694773057,1.25854696,3270.7,3270.0,0.0096632]
[1642694773252,2.32590878,3270.8,3270.0,0.0096632]
[1642694773656,2.32590878,3270.5,3270.0,1.0096632]
[1642694773854,2.32590878,3270.5,3270.1,0.00227364]
[1642694774053,2.32590878,3270.5,3270.1,0.00909478]
[1642694774253,2.32590878,3270.4,3270.2,0.00852635]
[1642694774457,0.2059,3270.6,3269.8,0.01080005]
[1642694774655,2.32590878,3270.8,3269.9,2.32031551]
[1642694774855,2.32590878,3270.8,3270.0,2.00227364]
[1642694775060,2.32590878,3270.9,3270.1,0.00227364]
[1642694775255,2.32590878,3270.8,3270.1,0.01136842]
[1642694775455,2.32590878,3270.8,3270.2,0.00852635]
[1642694776098,2.32590878,3270.6,3270.2,0.00852635]
[1642694776502,0.01171392,3270.1,3269.9,0.01250526]
[1642694776700,0.01171392,3270.1,3269.9,0.01023162]
[1642694776902,0.01171392,3270.1,3270.0,0.0096632]
[1642694777101,0.01171392,3270.1,3269.9,0.01023162]
[1642694777102,2.07354184,3270.1,3269.9,0.01023162]
[1642694777302,0.01171392,3270.1,3270.0,0.0096632]
[1642694777501,0.01171392,3270.1,3269.9,0.01023162]
[1642694782056,1.55024845,3270.0,3269.9,0.01023162]
[1642694783098,0.01171392,3270.1,3269.9,1.94526346]
[1642694783299,0.01171392,3270.1,3269.9,0.01023162]
[1642694783499,0.01171392,3270.1,3270.0,0.0096632]
[1642694783698,0.01171392,3270.1,3269.8,3.1]
[1642694783699,0.01171392,3270.1,3269.9,0.01023162]
[1642694784500,1.55024845,3270.0,3269.9,0.01023162]
[1642694784899,0.01171392,3270.1,3269.9,0.01023162]
[1642694784900,2.3376227,3270.1,3269.9,0.01023162]
[1642694785299,2.32590878,3270.0,3269.9,0.01023162]
[1642694785505,7.44518276,3270.0,3269.9,0.01023162]
[1642694786000,3.69518276,3270.0,3269.9,0.01023162]
[1642694786501,3.69518276,3270.0,3269.9,0.00931593]
[1642694786700,2.32590878,3270.0,3269.9,0.00931593]
[1642694788758,2.62590878,3270.0,3269.9,0.00931593]
[1642694789659,2.62590878,3270.0,3269.8,3.09656875]
[1642694789660,6.15,3269.9,3269.8,3.09656875]
[1642694789863,7.085,3269.9,3269.8,3.09656875]
[1642694790060,7.385,3269.9,3269.8,3.09656875]
[1642694790701,1.235,3269.9,3269.8,3.09656875]
[1642694790899,0.3,3269.9,3269.8,3.09656875]
[1642694791100,4.81524,3269.9,3269.8,3.09656875]
[1642694791498,4.81524,3269.9,3268.8,2.00227364]
[1642694791499,1.06939369,3268.9,3268.8,2.00227364]
[1642694791700,1.06939369,3268.9,3268.6,0.00227364]
[1642694791900,1.06939369,3268.9,3268.8,0.00625266]
[1642694792402,1.06939369,3268.9,3268.6,0.88816466]
[1642694792603,2.60377722,3268.8,3268.6,0.88816466]
[1642694792803,2.60377722,3268.8,3268.7,2.85682108]
[1642694793004,2.60377722,3268.8,3268.7,0.00682108]
[1642694793404,2.60377722,3268.8,3268.4,0.00852635]
[1642694793604,2.60377722,3268.8,3268.6,0.00738951]
[1642694793804,2.60377722,3268.8,3268.4,0.00852635]
[1642694795052,1.54788392,3268.6,3268.4,0.00852635]
[1642694795248,4.15166114,3268.5,3268.4,0.00852635]
[1642694795647,2.60377722,3268.5,3268.4,0.00852635]
[1642694795950,2.91001197,3268.5,3268.2,0.0096632]
[1642694796147,2.60377722,3268.4,3268.2,0.0096632]
[1642694796546,2.60377722,3268.3,3268.2,0.0096632]
[1642694796953,4.15166114,3268.5,3268.2,0.0096632]
[1642694797152,2.60377722,3268.4,3268.2,0.0096632]
[1642694797352,2.60377722,3268.3,3268.2,0.0096632]
[1642694797552,4.7931,3268.3,3268.2,0.0096632]
[1642694797753,7.39687722,3268.3,3268.2,0.0096632]
[1642694797953,3.44687722,3268.3,3268.2,0.0096632]
[1642694798203,4.76294605,3268.3,3268.2,0.0096632]
[1642694799222,9.31294605,3268.3,3268.2,0.0096632]
[1642694799807,4.76294605,3268.3,3268.2,0.0027862]
[1642694800508,4.76294605,3268.3,3268.1,0.00335462]
[1642694800909,2.60377722,3268.2,3268.1,0.00335462]
[1642694801958,3.40837722,3268.2,3268.1,0.00335462]
[1642694803162,10.51177722,3268.2,3268.1,0.00335462]
[1642694803362,10.51177722,3268.2,3267.3,0.00227364]
[1642694803363,1.86076847,3267.8,3267.3,0.00227364]
[1642694803564,2.90377722,3267.7,3267.1,7.39227364]
[1642694803766,2.60377722,3267.6,3267.4,0.00397897]
[1642694803963,5.41676549,3267.5,3267.4,0.00397897]
[1642694804164,4.07054271,3267.5,3267.4,0.00397897]
[1642694804362,4.37054271,3267.5,3267.3,0.00454739]
[1642694804564,4.37054271,3267.5,3266.5,0.00909478]
[1642694804565,5.85377722,3267.4,3266.5,0.00909478]
[1642694804765,2.60377722,3267.3,3266.5,0.00909478]
[1642694804967,0.01238311,3266.8,3266.5,0.00909478]
[1642694805168,8.90377722,3266.7,3264.3,3.2647]
[1642694805467,7.0661,3266.4,3266.3,0.01023163]
[1642694805703,12.05366702,3266.4,3266.3,0.01023163]
[1642694805909,12.81978192,3266.4,3264.4,0.95168616]
[1642694806103,0.2207,3265.8,3264.6,0.01080005]
[1642694806309,2.60377722,3265.7,3264.5,0.01136847]
[1642694806503,0.76628,3265.5,3264.6,0.01080005]
[1642694806704,2.60377722,3265.4,3264.3,0.01250532]
[1642694807907,5.79495366,3266.3,3264.3,2.16544532]
[1642694807908,2.36236143,3266.2,3264.3,2.16544532]
[1642694808107,2.60631228,3265.8,3264.3,2.16544532]
[1642694808309,2.60631228,3265.8,3264.4,0.11453331]
[1642694808511,2.60631228,3265.8,3265.0,0.93157021]
[1642694808814,2.60631228,3265.8,3265.1,0.00795793]
[1642694809008,9.8569,3266.3,3265.1,0.00795793]
[1642694809209,2.60626556,3266.2,3265.1,0.00795793]
[1642694809648,2.60626556,3266.2,3265.1,2.00795793]
[1642694810049,2.60626556,3266.2,3265.2,0.00738951]
[1642694811650,3.72086778,3266.2,3265.2,0.00738951]
[1642694811850,2.60626556,3266.1,3265.2,0.00738951]
[1642694812059,6.0922,3266.3,3265.1,3.00795793]
[1642694812254,2.60596977,3266.2,3265.2,0.00738951]
[1642694812452,2.60596977,3266.2,3265.5,1.06105401]
[1642694812854,2.60596977,3266.2,3265.6,0.00511581]
[1642694813105,2.21438975,3265.4,3265.3,2.0]
[1642694813299,2.21438975,3265.4,3264.8,2.0]
[1642694813697,2.21438975,3265.4,3264.9,0.00397897]
[1642694813897,2.21438975,3265.4,3265.2,1.34770466]
[1642694814298,2.21438975,3265.4,3265.3,4.40170527]
[1642694814500,2.21438975,3265.4,3265.3,0.00170527]
[1642694814700,2.21438975,3265.4,3265.3,1.00170527]
[1642694814899,2.21438975,3265.4,3265.3,0.00170527]
[1642694815099,2.21438975,3265.4,3265.3,1.82758981]
[1642694815600,2.21438975,3265.4,3265.3,0.00170527]
[1642694815998,2.21438975,3265.4,3265.2,0.0022737]
[1642694816198,2.21438975,3265.4,3264.4,2.23539851]
[1642694816199,2.21438975,3265.4,3265.1,0.00284212]
[1642694816397,2.21438975,3265.4,3264.8,1.0]
[1642694816603,2.21438975,3265.4,3264.7,1.2508226]
[1642694816853,2.21438975,3265.4,3264.6,1.8494492]
[1642694817056,2.21438975,3265.4,3264.8,0.00454739]
[1642694817258,2.21438975,3265.4,3264.4,0.99634367]
[1642694817460,2.21438975,3265.4,3264.5,1.87577255]
[1642694817461,0.00284212,3265.3,3264.5,1.87577255]
[1642694817658,0.00284212,3265.3,3264.6,0.00227097]
[1642694817864,2.21438975,3265.4,3264.6,0.00227097]
[1642694817865,0.00227369,3265.2,3264.6,0.00340782]
[1642694818257,2.21438975,3265.4,3264.6,0.00340782]
[1642694818258,0.00170527,3265.1,3264.6,0.00340782]
[1642694818664,0.00113685,3265.0,3264.6,0.00113685]
[1642694819078,0.00113685,3265.0,3264.5,0.00170527]
[1642694819267,0.00113685,3265.0,3264.3,0.00284212]
[1642694819561,1.24800766,3265.1,3264.3,0.00284212]
[1642694819762,1.24800766,3265.1,3264.3,0.00397897]
[1642694819962,1.24800766,3265.1,3264.1,0.00511581]
[1642694820607,0.4942,3265.2,3264.1,0.00738678]
[1642694820800,2.05671119,3265.3,3264.2,0.09303653]
[1642694820801,1.1852,3265.3,3264.2,0.09303653]
[1642694821000,1.1852,3265.3,3264.2,2.18186903]
[1642694821200,0.00113684,3265.2,3264.4,0.01278901]
[1642694821402,0.00113684,3265.2,3264.3,0.00397897]
[1642694821601,0.00113684,3265.2,3264.6,0.00690436]
[1642694821805,0.00113684,3265.2,3264.3,0.00397897]
[1642694822004,0.00113684,3265.2,3264.7,0.00170527]
[1642694822206,0.00113684,3265.2,3264.3,0.00397897]
[1642694822404,0.00113684,3265.2,3264.4,0.00341054]
[1642694822606,0.00113684,3265.2,3264.0,0.00568424]
[1642694822805,1.28714912,3264.8,3264.0,0.00568424]
[1642694823405,1.28714912,3264.8,3263.9,1.79707743]
[1642694823406,1.28714912,3264.8,3263.9,0.00625266]
[1642694823605,1.28714912,3264.8,3264.0,0.00568424]
[1642694823809,1.28714912,3264.8,3263.8,0.00682108]
[1642694824206,1.27895409,3264.2,3263.7,0.00738951]
[1642694824457,2.26665409,3264.2,3263.6,0.00795793]
[1642694824651,0.9877,3264.2,3263.6,0.00795793]
[1642694825452,5.1506,3264.8,3263.6,0.00795793]
[1642694825453,1.04437367,3264.7,3263.6,0.00795793]
[1642694825753,0.01225358,3264.5,3263.6,0.00795793]
[1642694825959,1.45353294,3264.0,3263.6,0.00795793]
[1642694826151,1.45353294,3264.0,3262.8,1.52479761]
[1642694826152,0.7239,3264.0,3262.8,1.52479761]
[1642694826352,0.7239,3264.0,3262.9,0.0119369]
[1642694826854,0.7239,3264.0,3262.6,7.52819997]
[1642694826855,0.7239,3264.0,3263.0,1.15724951]
[1642694827058,0.254,3264.1,3263.0,1.15724951]
[1642694827254,4.9057,3264.3,3263.1,0.01080005]
[1642694827456,1.41297129,3264.1,3263.1,0.01080005]
[1642694828120,2.30257129,3264.1,3262.8,0.01250532]
[1642694828316,2.65504,3264.0,3262.8,0.01250532]
[1642694828519,2.30257129,3264.1,3262.8,0.01250532]
[1642694828520,3.81790347,3263.9,3262.8,0.01250532]
[1642694828815,2.60760347,3263.8,3262.3,2.61914988]
[1642694829015,1.5103,3263.9,3262.3,2.61914988]
[1642694829016,1.2103,3263.9,3262.3,2.61914988]
[1642694829220,1.2103,3263.9,3262.4,0.01477901]
[1642694829415,1.2103,3263.9,3262.5,0.01569829]
[1642694829619,3.9441,3264.1,3262.6,0.15294]
[1642694829818,3.9441,3264.1,3263.1,0.82553881]
[1642694829819,3.88867,3264.1,3263.1,0.82553881]
[1642694830216,3.88867,3264.1,3263.2,0.01023162]
[1642694830417,1.1413,3264.7,3263.2,0.01023162]
[1642694830617,1.1413,3264.7,3263.3,0.05836072]
[1642694830618,2.58020747,3264.6,3263.3,0.05836072]
[1642694830818,2.58020747,3264.6,3264.1,1.00981459]
[1642694831019,2.58020747,3264.6,3263.5,0.90608141]
[1642694831020,1.75946489,3263.8,3263.5,0.90608141]
[1642694831218,1.75946489,3263.8,3263.6,1.37255137]
[1642694831416,1.75946489,3263.8,3263.5,0.85608141]
[1642694831617,1.75946489,3263.8,3263.5,0.81347092]
[1642694831852,1.75751489,3263.8,3263.5,0.81347092]
[1642694832056,1.75751489,3263.8,3262.7,7.39]
[1642694832057,1.75751489,3263.8,3262.5,0.01252709]
[1642694832259,1.75751489,3263.8,3262.3,1.06991104]
[1642694832456,2.91015905,3263.8,3262.6,1.29431424]
[1642694832659,0.2489,3263.2,3262.6,0.00625266]
[1642694832859,0.2489,3263.2,3262.7,0.00568423]
[1642694832860,0.02005428,3263.1,3262.7,0.00568423]
[1642694833056,0.2489,3263.2,3262.4,0.0073895]
[1642694833456,0.2489,3263.2,3262.3,0.00227035]
[1642694833457,0.2489,3263.2,3262.3,0.01022828]
[1642694833655,1.12107349,3262.7,3262.4,0.0073895]
[1642694833856,1.2238,3263.1,3262.4,0.0073895]
[1642694834055,1.2238,3263.1,3261.9,0.01023162]
[1642694834257,1.2238,3263.1,3261.9,0.88277418]
[1642694834458,1.2238,3263.1,3262.0,0.00227035]
[1642694834759,1.2238,3263.1,3262.1,0.00909477]
[1642694834956,1.5508197,3263.0,3262.1,0.00909477]
[1642694835257,1.5508197,3263.0,3261.9,0.01023162]
[1642694835605,5.0171,3263.1,3262.0,1.0477992]
[1642694835805,5.0171,3263.1,3262.1,0.00227035]
[1642694836004,5.0171,3263.1,3262.1,0.01136512]
[1642694836209,5.0171,3263.1,3262.2,0.00852635]
[1642694836210,5.6171,3263.1,3262.2,0.00852635]
[1642694836607,5.6171,3263.1,3261.9,0.01023162]
[1642694836808,6.38395,3263.1,3261.7,0.01136847]
[1642694837013,5.6171,3263.1,3261.4,0.01307374]
[1642694837212,1.50687679,3262.6,3261.7,0.96008874]
[1642694837517,1.50687679,3262.6,3261.8,0.01307039]
[1642694837714,1.50687679,3262.6,3261.8,0.01080004]
[1642694837913,1.50687679,3262.6,3261.3,0.00227035]
[1642694837914,0.94560787,3263.0,3261.9,0.01023162]
[1642694838113,5.0171,3263.1,3261.6,0.01273453]
[1642694838317,5.0171,3263.1,3261.5,0.01811259]
[1642694838512,5.0171,3263.1,3261.8,0.01825795]
[1642694838711,5.0171,3263.1,3261.6,0.01420724]
[1642694838911,5.0171,3263.1,3261.9,0.01023162]
[1642694839112,1.16268546,3263.0,3262.1,0.84317333]
[1642694839364,5.0171,3263.1,3262.1,0.84317333]
[1642694839365,1.2238,3263.1,3262.1,0.84317333]
[1642694839558,1.2238,3263.1,3262.2,0.0107967]
[1642694839959,1.2238,3263.1,3262.3,0.00795793]
[1642694840163,1.5238,3263.1,3262.3,0.00795793]
[1642694840360,2.26564234,3263.0,3262.3,0.00795793]
[1642694840560,0.01229204,3262.9,3262.3,0.00795793]
[1642694840760,0.01229204,3262.9,3262.0,0.0096632]
[1642694840958,4.35,3262.8,3261.2,0.09585824]
[1642694841159,4.35,3262.8,3261.4,0.00341054]
[1642694841160,2.79920318,3262.7,3261.4,0.00341054]
[1642694841361,0.97072277,3262.6,3261.4,0.00341054]
[1642694841559,0.97413331,3262.6,3261.4,0.00341054]
[1642694841758,0.00284212,3262.5,3261.4,0.00568104]
[1642694842163,1.26934255,3262.3,3261.5,0.00284211]
[1642694842562,0.00113685,3262.2,3261.3,0.7736172]
[1642694842772,0.00397896,3262.2,3261.2,0.09585824]
[1642694842963,0.00341054,3262.1,3261.2,0.09585824]
[1642694843202,0.00341054,3262.1,3261.3,0.00113685]
[1642694843404,0.00284211,3262.0,3261.3,0.00113685]
[1642694843802,0.00227369,3261.9,3261.3,0.00113685]
[1642694844100,0.00170527,3261.8,3261.3,0.00113685]
[1642694844501,0.00113684,3261.7,3261.3,0.00113685]
[1642694844905,0.00397896,3262.2,3261.3,0.00113685]
[1642694845102,0.00397896,3262.2,3261.3,1.35066965]
[1642694845306,0.00341054,3262.1,3261.3,0.00113685]
[1642694845702,0.00284211,3262.0,3261.3,0.00113685]
[1642694845902,0.00284211,3262.0,3261.1,0.0022737]
[1642694846102,2.25745307,3262.2,3261.1,0.0022737]
[1642694846103,0.00227369,3261.9,3261.1,0.0022737]
[1642694846502,0.00170527,3261.8,3261.0,0.00284212]
[1642694846966,0.00113684,3261.7,3260.9,0.09104209]
[1642694847169,0.00397896,3261.7,3260.4,0.15294]
[1642694847368,0.00341054,3261.6,3260.5,1.84922779]
[1642694847566,0.00341054,3261.6,3260.7,0.00170527]
[1642694847767,0.00284212,3261.5,3260.7,0.00170527]
[1642694847974,1.27823646,3261.5,3260.7,0.00170527]
[1642694848166,6.11141164,3262.2,3260.7,0.00170527]
[1642694848167,0.00227369,3261.4,3260.7,0.00170527]
[1642694848567,0.00170527,3261.3,3260.7,0.00170527]
[1642694848968,0.00113685,3261.2,3260.7,0.00170527]
[1642694849268,0.00625266,3262.1,3260.7,0.00170527]
[1642694849467,0.00625266,3262.1,3261.0,1.15813475]
[1642694849468,1.27952142,3262.1,3261.0,1.15813475]
[1642694849668,0.00568423,3262.0,3261.0,1.15813475]
[1642694849868,0.00568423,3262.0,3260.7,0.43612049]
[1642694850066,0.00682108,3261.9,3260.6,1.6423359]
[1642694850470,4.4476,3262.2,3260.6,1.6423359]
[1642694850471,0.00625266,3261.8,3260.6,1.6423359]
[1642694850903,2.61471534,3261.7,3260.6,1.6423359]
[1642694851103,2.60903111,3261.6,3261.0,1.10879049]
[1642694851302,2.61414692,3261.6,3261.0,1.10879049]
[1642694851504,0.00454739,3261.5,3261.0,1.10879049]
[1642694851704,0.00454739,3261.5,3260.6,1.6423359]
[1642694851909,5.8476,3262.2,3260.6,1.6423359]
[1642694851910,2.61320123,3261.4,3260.6,1.6423359]
[1642694852109,2.60922227,3261.3,3260.6,1.6423359]
[1642694852309,2.61263281,3261.3,3260.6,1.6423359]
[1642694852510,0.00284212,3261.2,3260.6,1.6423359]
[1642694852711,1.43498202,3261.0,3260.6,1.6423359]
[1642694853115,0.00113685,3260.9,3260.6,1.6423359]
[1642694855162,0.00113685,3260.9,3260.2,1.25067809]
[1642694855163,2.53314267,3260.5,3260.2,1.25067809]
[1642694855364,2.53314267,3260.5,3260.2,0.09585824]
[1642694855563,2.53314267,3260.5,3260.3,0.0022737]
[1642694856563,2.53314267,3260.5,3260.2,0.00284212]
[1642694856762,3.59494267,3260.5,3260.2,0.00284212]
[1642694857368,3.59494267,3260.5,3260.1,0.12626754]
[1642694857768,3.59494267,3260.5,3260.2,0.00284212]
[1642694858600,3.59494267,3260.5,3260.1,0.00341054]
[1642694858601,1.53777801,3260.4,3260.1,0.00341054]
[1642694858801,2.62710383,3260.3,3260.1,0.00341054]
[1642694859003,1.53777801,3260.4,3260.1,0.00341054]
[1642694859004,6.9600475,3260.2,3260.1,0.00341054]
[1642694859300,4.35,3260.2,3260.1,0.00341054]
[1642694859503,6.9601005,3260.2,3260.1,0.00341054]
[1642694862482,0.0422285,3260.0,3259.1,0.00226981]
[1642694862682,2.6101005,3259.9,3259.1,0.00226981]
[1642694862881,2.6101005,3259.9,3259.2,0.00511581]
[1642694863281,1.54512785,3259.5,3259.2,0.00511581]
[1642694863485,0.9484,3259.5,3259.2,0.00511581]
[1642694863881,0.9484,3259.5,3258.8,0.00738951]
[1642694864486,0.9484,3259.5,3259.4,3.87246809]
[1642694864684,2.53314267,3260.5,3259.4,3.87246809]
[1642694864884,2.61012109,3260.4,3259.5,0.00550565]
[1642694865084,2.61182636,3260.4,3259.5,1.00568035]
[1642694865284,0.00113684,3260.3,3259.6,0.00511193]
[1642694865706,0.00113684,3260.3,3259.7,0.0022737]
[1642694865902,0.00113684,3260.3,3259.9,1.46508544]
[1642694866109,0.00113684,3260.3,3259.7,0.0022737]
[1642694866502,0.00113684,3260.3,3259.9,0.9065818]
[1642694867307,0.00113684,3260.3,3259.7,0.0022737]
[1642694867711,0.00113684,3260.3,3259.6,0.15294]
[1642694868008,0.00113684,3260.3,3259.9,0.02915121]
[1642694868209,0.00113684,3260.3,3259.9,2.02915121]
[1642694868507,0.00113684,3260.3,3260.0,2.09802782]
[1642694869355,0.00113684,3260.3,3259.9,0.00226981]
[1642694869558,0.00113684,3260.3,3259.7,0.01733286]
[1642694869958,0.00113684,3260.3,3259.8,0.00170527]
[1642694870558,0.00113684,3260.3,3259.8,0.00226981]
[1642694870859,0.00113684,3260.3,3259.9,0.00113685]
[1642694871270,0.00113684,3260.3,3259.8,0.00397508]
[1642694871461,0.00113684,3260.3,3259.8,0.00170527]
[1642694871661,0.00113684,3260.3,3259.9,0.00113685]
[1642694871860,0.00113684,3260.3,3259.8,1.19921659]
[1642694872064,0.00113684,3260.3,3259.9,0.15407685]
[1642694872265,0.00113684,3260.3,3259.9,0.00113685]
[1642694872465,0.00113684,3260.3,3259.9,0.15407685]
[1642694872665,0.00113684,3260.3,3259.9,0.92110685]
[1642694872866,0.00113684,3260.3,3260.1,17.96]
[1642694873115,0.00113684,3260.3,3259.9,0.92110685]
[1642694873116,0.00113684,3260.3,3260.2,21.71]
[1642694873310,0.00113684,3260.3,3260.2,1.94761695]
[1642694873508,0.00113684,3260.3,3260.2,0.94761695]
[1642694874509,0.00113684,3260.3,3260.2,3.54761695]
[1642694874910,0.00113684,3260.3,3260.2,4.54761695]
[1642694875110,0.00113684,3260.3,3260.2,22.50761695]
[1642694875310,2.53314267,3260.5,3260.3,5.2]
[1642694875511,2.53314267,3260.5,3260.4,20.95001087]
[1642694875712,2.53314267,3260.5,3260.4,19.12533573]
[1642694875909,2.53427952,3260.5,3260.4,19.12533573]
[1642694876311,2.53427952,3260.5,3260.4,20.45810587]
[1642694877255,2.53427952,3260.5,3260.4,23.55810587]
[1642694878558,2.53427952,3260.5,3260.4,23.54571014]
[1642694878757,2.53427952,3260.5,3260.4,22.39277014]
[1642694878961,2.53427952,3260.5,3260.4,4.43277014]
[1642694879163,2.53427952,3260.5,3260.4,3.1]
[1642694879559,2.53427952,3260.5,3260.4,23.02123778]
[1642694879759,2.53427952,3260.5,3260.4,23.17417778]
[1642694879963,12.92466082,3262.1,3260.5,6.2842]
[1642694879964,1.54018223,3261.5,3260.5,6.2842]
[1642694880161,1.54018223,3261.8,3260.7,17.97702346]
[1642694880359,0.2,3262.1,3260.7,17.97702346]
[1642694880360,1.74018223,3262.1,3261.3,17.96]
[1642694880616,1.74018223,3262.1,3261.7,1.45057203]
[1642694880809,0.00852635,3262.0,3261.8,1.07863544]
[1642694881008,0.46374239,3261.7,3261.6,1.23050225]
[1642694881213,4.239e-05,3261.7,3261.6,5.72823244]
[1642694881410,4.239e-05,3261.7,3261.6,23.68823244]
[1642694881411,0.00686347,3261.7,3261.6,23.68823244]
[1642694881610,0.00686347,3261.7,3261.6,2.50449939]
[1642694881814,0.00686347,3261.7,3261.6,3.27108939]
[1642694882013,0.18593043,3262.1,3261.6,2.35155939]
[1642694882213,1.72611266,3262.1,3261.7,3.02467036]
[1642694882416,0.00170527,3262.0,3261.7,3.02467036]
[1642694882614,0.00170527,3262.0,3261.7,2.25807036]
[1642694882813,0.00113685,3261.9,3261.6,2.3538292]
[1642694883614,0.00113685,3261.9,3261.6,0.00226981]
[1642694883818,0.00113685,3261.9,3261.4,2.53311]
[1642694883819,1.54018223,3261.8,3261.4,0.00226981]
[1642694884018,1.54018223,3261.6,3261.2,0.00226981]
[1642694884214,0.00113685,3261.9,3261.5,0.00113685]
[1642694884215,2.32182588,3261.7,3261.5,0.00113685]
[1642694884460,2.32182588,3261.6,3261.3,0.00227369]
[1642694884657,2.32182588,3261.7,3261.0,0.00397896]
[1642694884857,2.32182588,3261.7,3261.0,0.00226981]
[1642694885058,2.32182588,3261.6,3261.0,0.00624877]
[1642694885261,4.28692053,3261.9,3260.6,2.15294]
[1642694885262,2.32182588,3261.4,3261.1,0.00341054]
[1642694885458,0.1902,3261.8,3261.1,0.00341054]
[1642694885459,2.32182588,3261.3,3261.1,0.00341054]
[1642694885659,2.32182588,3261.3,3260.7,0.00568423]
[1642694885858,2.32182588,3261.3,3260.8,0.00511581]
[1642694886060,2.32182588,3261.3,3260.4,0.00965931]
[1642694886061,2.32182588,3261.2,3260.4,0.00965931]
[1642694886263,2.32182588,3261.2,3261.0,3.1]
[1642694886458,2.32182588,3261.2,3261.0,3.10087822]
[1642694886658,2.32182588,3261.2,3261.1,0.00341054]
[1642694886858,2.32182588,3261.2,3261.1,0.00428876]
[1642694887965,3.55,3261.1,3261.0,3.09507969]
[1642694888210,3.55,3261.1,3261.0,3.09595791]
[1642694888410,3.40820699,3261.1,3261.0,3.09595791]
[1642694888612,0.3,3261.1,3261.0,3.09595791]
[1642694888808,3.40820699,3261.1,3261.0,3.09595791]
[1642694889008,3.10820699,3261.1,3261.0,3.09595791]
[1642694889808,3.40820699,3261.2,3261.0,3.09595791]
[1642694890012,2.46463421,3261.3,3261.0,3.09595791]
[1642694890213,3.74332899,3261.2,3261.0,3.09595791]
[1642694890408,1.5344322,3261.2,3261.0,3.09595791]
[1642694890612,2.46463421,3261.3,3261.0,3.09595791]
[1642694890909,2.46551724,3261.2,3261.0,3.09595791]
[1642694891110,6.3419159,3261.2,3261.0,3.09595791]
[1642694891310,8.49658886,3261.1,3261.0,3.09595791]
[1642694891511,6.6,3261.1,3261.0,3.09595791]
[1642694892163,6.6,3261.1,3261.0,3.09595793]
[1642694892564,4.64353756,3261.3,3261.0,3.09595793]
[1642694892764,2.7782725,3261.5,3261.1,0.02178496]
[1642694892765,1.244,3261.5,3261.1,0.02178496]
[1642694892961,7.03289866,3261.8,3261.1,0.00087824]
[1642694893160,0.00170527,3261.4,3261.1,0.00087824]
[1642694893361,0.00341054,3261.7,3261.1,0.00314805]
[1642694893561,0.00113685,3261.3,3261.1,0.00087824]
[1642694893763,2.2569343,3261.9,3261.1,0.00087824]
[1642694893764,2.63967806,3261.5,3261.1,0.00087824]
[1642694894062,4.64520563,3261.4,3261.1,0.00087824]
[1642694894263,2.33471074,3261.3,3261.1,0.00087824]
[1642694894462,0.00113685,3261.3,3261.1,0.00087824]
[1642694895265,2.61105846,3261.3,3261.1,0.00087824]
[1642694901959,2.91105846,3261.3,3261.1,0.00087824]
[1642694902567,3.99455101,3261.3,3261.1,0.00087824]
[1642694902764,7.84144528,3261.2,3261.1,0.00087824]
[1642694902966,1.54144528,3261.2,3261.1,0.00087824]
[1642694903213,2.61105846,3261.3,3261.1,0.00087824]
[1642694903814,2.91105846,3261.3,3261.1,0.00087824]
[1642694904013,3.21105846,3261.3,3261.1,0.00087824]
[1642694904223,4.65572942,3261.3,3261.1,0.00087824]
[1642694904614,4.05572942,3261.3,3261.1,0.00087824]
[1642694905220,2.61105846,3261.3,3261.1,0.00087824]
[1642694905616,2.61105846,3261.3,3261.1,0.0137184]
[1642694906214,2.61105846,3261.3,3261.1,0.00087824]
[1642694907259,2.91105846,3261.3,3261.1,0.00087824]
[1642694907657,3.21105846,3261.3,3261.1,0.00087824]
[1642694908458,1.3161558,3261.2,3261.0,2.99595793]
[1642694908656,0.60113685,3261.3,3261.0,2.99683617]
[1642694908859,0.30113685,3261.3,3261.0,2.99683617]
[1642694909658,0.76723,3261.2,3261.0,2.99683617]
[1642694909860,0.3,3261.2,3261.0,2.99683617]
[1642694910262,0.30113685,3261.3,3261.0,2.99683617]
[1642694910462,0.00113685,3261.3,3261.1,1.10365571]
[1642694910705,0.00113685,3261.3,3261.1,1.10453395]
[1642694911403,0.00113685,3261.3,3261.1,2.2996786]
[1642694911604,0.00113685,3261.3,3261.1,1.10453395]
[1642694912910,0.00113685,3261.3,3261.2,1.77468854]
[1642694913114,0.00113685,3261.3,3261.2,1.77556678]
[1642694913309,5.39373043,3262.1,3261.2,1.77556678]
[1642694913509,1.43013043,3262.1,3261.3,0.02409398]
[1642694913710,1.35932747,3262.1,3261.3,0.00087824]
[1642694913909,1.35932747,3262.1,3261.8,1.02644452]
[1642694914112,0.11512747,3262.1,3261.8,1.02732276]
[1642694914360,0.11512747,3262.1,3261.8,0.00087824]
[1642694915356,1.61820963,3262.1,3261.8,0.00087824]
[1642694915556,2.21820963,3262.1,3261.8,0.00087824]
[1642694916360,2.21820963,3262.1,3261.4,0.00284212]
[1642694916361,5.15,3261.9,3261.4,0.00284212]
[1642694916558,5.15,3261.9,3260.0,0.00226981]
[1642694916559,0.02137541,3261.4,3260.0,0.00226981]
[1642694916758,0.02137541,3261.4,3260.1,0.01023162]
[1642694916961,0.01257782,3261.5,3260.1,0.01023162]
[1642694917161,1.48972668,3261.1,3260.3,1.03236014]
[1642694917561,1.78972668,3261.1,3260.4,0.00568423]
[1642694919205,1.43488466,3260.6,3260.4,0.00568423]
[1642694919707,2.03488466,3260.6,3260.4,0.00568423]
[1642694920910,0.6,3260.6,3260.4,0.00568423]
[1642694921107,0.3,3260.6,3260.4,0.00568423]
[1642694921306,1.3672259,3260.7,3260.4,0.00568423]
[1642694922166,1.46019307,3260.6,3260.4,0.00568423]
[1642694922662,6.3,3260.5,3260.3,3.1]
[1642694922864,6.6,3260.5,3260.3,3.1]
[1642694923063,6.9,3260.5,3260.3,3.1]
[1642694923262,0.6,3260.5,3260.3,3.1]
[1642694923567,2.41314629,3259.8,3258.9,0.00226981]
[1642694923765,0.02359869,3259.6,3258.9,0.00226981]
[1642694923966,2.6107331,3259.5,3259.0,0.00795793]
[1642694924362,2.6107331,3259.4,3259.0,0.00795793]
[1642694924564,2.6107331,3259.3,3258.8,0.00226981]
[1642694924762,2.6107331,3259.2,3259.0,1.01386665]